bitfinex/quotes_BTCUSD_20250129
["timestamp","ask_amount","ask_price","bid_price","bid_amount"]
[1738180600375,0.13800682,103470.0,103460.0,0.17490818]
[1738180601016,0.09724316,103470.0,103460.0,0.17490818]
[1738180601228,0.24221216,103470.0,103460.0,0.0001434]
[1738180601666,0.24221216,103470.0,103460.0,0.0002857]
[1738180601667,0.24724316,103470.0,103460.0,0.0002857]
[1738180601880,0.49846894,103470.0,103460.0,0.0002857]
[1738180602551,0.47546894,103470.0,103460.0,0.0002857]
[1738180602989,0.49846894,103470.0,103460.0,0.0002857]
[1738180604056,0.62740716,103470.0,103460.0,0.0002857]
[1738180604483,0.167983,103460.0,103450.0,0.0001425]
[1738180604687,0.15,103440.0,103430.0,0.3385324]
[1738180604930,0.15,103440.0,103430.0,0.2134294]
[1738180604931,0.09724316,103440.0,103430.0,0.2134294]
[1738180605136,0.09724316,103440.0,103430.0,0.22329118]
[1738180606614,0.09724316,103440.0,103430.0,0.2134294]
[1738180606838,0.09824316,103440.0,103430.0,0.22429118]
[1738180607041,0.10806748,103440.0,103430.0,0.22429118]
[1738180607477,0.09824316,103440.0,103430.0,0.22429118]
[1738180607892,0.09824316,103440.0,103430.0,0.03092418]
[1738180608112,0.09824316,103440.0,103430.0,0.17594918]
[1738180608319,0.09724316,103440.0,103430.0,0.17494918]
[1738180608743,0.09824316,103440.0,103430.0,0.17594918]
[1738180608950,0.10806748,103440.0,103430.0,0.17594918]
[1738180609156,0.10775344,103440.0,103430.0,0.1650874]
[1738180609368,0.10706748,103440.0,103430.0,0.17494918]
[1738180609581,0.10706748,103440.0,103430.0,0.1660874]
[1738180609785,0.10706748,103440.0,103430.0,0.17594918]
[1738180610214,0.09724316,103440.0,103430.0,0.17494918]
[1738180610648,0.01208866,103450.0,103440.0,0.17978178]
[1738180610861,0.01208866,103450.0,103440.0,0.32479278]
[1738180611783,0.2641437,103470.0,103460.0,0.17476478]
[1738180611784,0.27623236,103470.0,103460.0,0.17476478]
[1738180612030,0.27623236,103470.0,103460.0,0.32573124]
[1738180612240,0.40109876,103470.0,103460.0,0.17476478]
[1738180612870,0.3890101,103470.0,103460.0,0.00986178]
[1738180613066,0.3900101,103470.0,103460.0,0.17576478]
[1738180613575,0.36138686,103470.0,103460.0,0.164903]
[1738180613775,0.36138686,103470.0,103460.0,0.17576478]
[1738180614804,0.50635586,103470.0,103460.0,0.17576478]
[1738180615006,0.50635586,103470.0,103460.0,0.001]
[1738180615184,0.50635586,103470.0,103460.0,0.145983]
[1738180615494,1.02378426,103470.0,103460.0,0.001]
[1738180615720,1.19408926,103470.0,103450.0,0.15485578]
[1738180615922,0.09792912,103460.0,103450.0,0.17477578]
[1738180616129,0.09724316,103460.0,103450.0,0.17477578]
[1738180616340,0.14311752,103460.0,103450.0,0.17477578]
[1738180616742,0.18436631,103460.0,103450.0,0.17477878]
[1738180616955,0.144997,103450.0,103440.0,0.00986178]
[1738180617152,0.144997,103450.0,103430.0,0.0001424]
[1738180617153,0.145011,103440.0,103430.0,0.0001424]
[1738180617356,0.24225416,103440.0,103430.0,0.0200624]
[1738180617560,0.18001074,103440.0,103430.0,0.1650874]
[1738180617804,0.09724316,103440.0,103430.0,0.17494918]
[1738180618014,0.04587436,103460.0,103450.0,0.15485878]
[1738180618015,0.04656032,103460.0,103450.0,0.15485878]
[1738180618241,0.09724316,103460.0,103450.0,0.17477878]
[1738180618445,0.09724316,103460.0,103450.0,0.01992]
[1738180618446,0.24222616,103460.0,103450.0,0.01992]
[1738180618654,0.24222616,103460.0,103450.0,0.02292]
[1738180618903,0.24222616,103460.0,103450.0,0.003]
[1738180619109,0.09724316,103460.0,103450.0,0.15485878]
[1738180619320,0.16789531,103460.0,103450.0,0.15485878]
[1738180619551,0.16720935,103460.0,103450.0,0.17477878]
[1738180619974,0.09724316,103460.0,103450.0,0.17477878]
[1738180621498,0.09724316,103460.0,103450.0,0.17677878]
[1738180622052,0.2641437,103470.0,103460.0,0.17476478]
[1738180622262,0.2641437,103470.0,103460.0,0.32573124]
[1738180622472,0.2641437,103470.0,103460.0,0.32476478]
[1738180622686,0.2641437,103470.0,103460.0,0.45416478]
[1738180622900,0.29055807,103470.0,103460.0,0.25586478]
[1738180623115,0.38780123,103470.0,103460.0,0.17476478]
[1738180623328,0.72607123,103470.0,103450.0,0.15485878]
[1738180623536,0.72607123,103470.0,103450.0,0.17477878]
[1738180623537,0.09792912,103460.0,103450.0,0.17477878]
[1738180623746,0.13609188,103460.0,103450.0,0.02978178]
[1738180624169,0.28176084,103460.0,103450.0,0.01992]
[1738180624393,0.47440688,103460.0,103440.0,0.15487278]
[1738180624600,0.47440588,103460.0,103440.0,0.36814078]
[1738180624815,0.14568796,103450.0,103430.0,0.36829118]
[1738180625026,0.3387801,103450.0,103430.0,0.01000418]
[1738180625234,0.6771281,103450.0,103430.0,0.0001424]
[1738180625453,0.24225416,103440.0,103430.0,0.0200624]
[1738180625662,0.09724316,103440.0,103430.0,0.1650874]
[1738180625879,0.24225416,103440.0,103430.0,0.1650874]
[1738180626092,0.22033626,103440.0,103430.0,0.17494918]
[1738180626505,0.22033626,103440.0,103430.0,0.02992418]
[1738180626752,0.13819105,103440.0,103430.0,0.17494918]
[1738180626959,0.13887701,103440.0,103430.0,0.1650874]
[1738180627205,0.13887701,103440.0,103430.0,0.17494918]
[1738180627407,0.09792912,103440.0,103430.0,0.17494918]
[1738180627620,0.09724316,103440.0,103430.0,0.17494918]
[1738180628040,0.11178707,103440.0,103430.0,0.17494918]
[1738180628248,0.11178707,103440.0,103430.0,0.17594918]
[1738180628473,0.09701116,103440.0,103430.0,0.17594918]
[1738180628686,0.26444295,103470.0,103450.0,0.144997]
[1738180628902,0.36168611,103470.0,103460.0,0.15484478]
[1738180629113,0.36168611,103470.0,103460.0,0.32476478]
[1738180629324,0.26444295,103470.0,103460.0,0.32476478]
[1738180629959,0.36168611,103470.0,103460.0,0.164903]
[1738180630173,0.50665511,103470.0,103450.0,0.56240878]
[1738180630456,0.26444295,103470.0,103460.0,0.144983]
[1738180630707,0.26444295,103470.0,103460.0,0.32476478]
[1738180630910,0.26444295,103470.0,103460.0,0.34142809]
[1738180631131,0.26444295,103470.0,103460.0,0.42292809]
[1738180631345,0.15100404,103470.0,103460.0,0.47592809]
[1738180631556,0.19343325,103560.0,103540.0,0.144867]
[1738180631769,0.09724316,103550.0,103540.0,0.17464878]
[1738180632195,0.00077979,103560.0,103540.0,0.17464878]
[1738180632196,0.00077979,103560.0,103550.0,0.17463878]
[1738180632414,0.09802295,103560.0,103550.0,0.17463878]
[1738180632830,0.00077979,103560.0,103550.0,0.17463878]
[1738180633042,0.09802295,103560.0,103550.0,0.32463878]
[1738180633257,0.00077979,103560.0,103550.0,0.32463878]
[1738180633470,0.00077979,103560.0,103550.0,0.17463878]
[1738180633885,0.00077979,103560.0,103550.0,0.164777]
[1738180634101,0.24286595,103560.0,103540.0,0.340013]
[1738180634309,0.09792912,103550.0,103540.0,0.146867]
[1738180634519,0.09792912,103550.0,103540.0,0.164787]
[1738180634724,0.09724316,103550.0,103530.0,0.213089]
[1738180634935,0.00068596,103540.0,103530.0,0.17466278]
[1738180635137,0.09724316,103540.0,103530.0,0.17466278]
[1738180635565,0.09724316,103540.0,103530.0,0.02978178]
[1738180635771,0.09724316,103540.0,103530.0,0.22294978]
[1738180635974,0.09724316,103540.0,103520.0,0.02978178]
[1738180636188,0.09724316,103530.0,103520.0,0.17467878]
[1738180636398,0.12637463,103540.0,103530.0,0.17766678]
[1738180636598,0.12637463,103540.0,103530.0,0.17854388]
[1738180636812,0.02913147,103540.0,103530.0,0.32757804]
[1738180637022,0.02913147,103540.0,103530.0,0.4248212]
[1738180637482,0.02913147,103540.0,103530.0,2.0002212]
[1738180637686,0.02913147,103540.0,103530.0,1.9972212]
[1738180638117,0.09772216,103540.0,103530.0,0.00977304]
[1738180638330,0.09840812,103540.0,103520.0,0.01177304]
[1738180638554,0.29112012,103530.0,103510.0,0.01992]
[1738180638778,0.29045416,103520.0,103490.0,0.02969304]
[1738180638986,0.29114712,103510.0,103480.0,0.15472704]
[1738180639197,0.09724316,103510.0,103490.0,0.17463304]
[1738180639398,0.24285212,103510.0,103490.0,0.17463304]
[1738180639603,0.50183595,103510.0,103490.0,0.02969304]
[1738180639824,0.24217016,103500.0,103470.0,0.358165]
[1738180640031,0.09724316,103490.0,103480.0,0.01992]
[1738180640240,0.09724316,103490.0,103480.0,0.02969304]
[1738180640481,0.09724316,103490.0,103480.0,0.17464804]
[1738180640686,0.12589563,103490.0,103480.0,0.17464804]
[1738180641120,0.28342619,103490.0,103460.0,0.36797104]
[1738180641330,0.00068596,103480.0,103460.0,0.01992]
[1738180641509,0.09792912,103480.0,103470.0,0.01992]
[1738180641781,0.144969,103470.0,103460.0,0.00977304]
[1738180641998,0.24232755,103470.0,103460.0,0.00977304]
[1738180642204,0.09735855,103470.0,103460.0,0.17467604]
[1738180642435,0.00011539,103470.0,103460.0,0.17564262]
[1738180642632,0.00011539,103470.0,103460.0,0.32564262]
[1738180642836,0.00011539,103470.0,103460.0,0.32467604]
[1738180643090,0.09735855,103470.0,103460.0,0.01992]
[1738180643303,0.44525402,103470.0,103450.0,0.15491254]
[1738180643508,0.09724316,103460.0,103450.0,0.17486085]
[1738180643712,0.09724316,103460.0,103450.0,0.02009081]
[1738180643922,0.09724316,103460.0,103450.0,0.17486085]
[1738180644135,0.24222616,103460.0,103450.0,0.0002862]
[1738180644750,0.24222616,103460.0,103450.0,8.165e-05]
[1738180644958,0.32286841,103460.0,103450.0,8.165e-05]
[1738180645168,0.34586841,103460.0,103450.0,8.165e-05]
[1738180645381,0.49586841,103460.0,103450.0,8.165e-05]
[1738180645632,0.49586841,103460.0,103450.0,0.00108165]
[1738180646279,0.49586841,103460.0,103450.0,8.165e-05]
[1738180646691,0.54566841,103460.0,103450.0,8.165e-05]
[1738180647333,0.09724316,103460.0,103450.0,8.165e-05]
[1738180647555,0.09792912,103460.0,103450.0,0.14507865]
[1738180647764,0.09792912,103460.0,103450.0,0.16488326]
[1738180647971,0.24291212,103460.0,103450.0,0.01988626]
[1738180648218,0.26522616,103460.0,103450.0,8.165e-05]
[1738180648423,0.26522616,103460.0,103450.0,0.14507865]
[1738180648424,0.09724316,103460.0,103450.0,0.14507865]
[1738180648643,0.24291212,103460.0,103450.0,0.14507865]
[1738180648847,0.09724316,103460.0,103450.0,0.16488326]
[1738180649064,0.09724316,103460.0,103450.0,0.1746563]
[1738180649274,0.25195048,103460.0,103450.0,0.00022405]
[1738180649747,0.1071133,103460.0,103450.0,0.14522105]
[1738180649964,0.1071133,103460.0,103450.0,0.00022405]
[1738180649965,0.25278226,103460.0,103450.0,0.00022405]
[1738180650205,0.4250963,103460.0,103450.0,0.00022405]
[1738180650836,0.4250963,103460.0,103450.0,0.00107823]
[1738180650837,0.42495048,103460.0,103450.0,0.00107823]
[1738180651048,0.39222616,103460.0,103450.0,0.00107823]
[1738180651260,0.24222616,103460.0,103450.0,7.823e-05]
[1738180651474,0.26522616,103460.0,103450.0,7.823e-05]
[1738180651687,0.42022616,103460.0,103450.0,7.823e-05]
[1738180652113,0.41522616,103460.0,103450.0,7.823e-05]
[1738180652322,0.41522616,103460.0,103450.0,0.14507523]
[1738180652323,0.12424316,103460.0,103450.0,0.14507523]
[1738180652525,0.10124316,103460.0,103450.0,0.14507523]
[1738180652750,0.10192912,103460.0,103450.0,0.16487984]
[1738180652960,0.10124316,103460.0,103450.0,0.16487984]
[1738180653379,0.2755198,103460.0,103450.0,0.16487984]
[1738180653587,0.5411906,103460.0,103420.0,0.193386]
[1738180653797,0.09792912,103450.0,103420.0,0.19434981]
[1738180654021,0.09792912,103450.0,103440.0,0.193347]
[1738180654228,0.09724316,103450.0,103440.0,0.193347]
[1738180654647,0.00014391,103460.0,103450.0,0.144997]
[1738180655507,9.1e-07,103460.0,103450.0,0.26224016]
[1738180655724,0.04415991,103530.0,103510.0,0.338108]
[1738180656023,0.00077804,103540.0,103530.0,0.144885]
[1738180656238,0.0980212,103540.0,103530.0,0.54195664]
[1738180656455,0.00033925,103560.0,103550.0,0.144857]
[1738180656665,2.5e-07,103590.0,103580.0,0.15]
[1738180656883,2.5e-07,103590.0,103580.0,0.55854995]
[1738180657109,0.00029925,103620.0,103610.0,0.144773]
[1738180657326,0.09754241,103620.0,103610.0,1.644773]
[1738180657537,0.09754241,103620.0,103610.0,1.794773]
[1738180657751,0.0976866,103620.0,103610.0,1.794773]
[1738180658164,0.00044344,103620.0,103610.0,1.794773]
[1738180658377,0.00044344,103620.0,103610.0,1.797773]
[1738180658585,0.0284975,103660.0,103640.0,0.294731]
[1738180658824,0.0284975,103660.0,103650.0,0.54178864]
[1738180659040,0.0284975,103660.0,103650.0,2.04178864]
[1738180659041,0.12574066,103660.0,103650.0,2.04178864]
[1738180659259,0.0284975,103660.0,103650.0,2.04178864]
[1738180659466,0.00029925,103700.0,103690.0,0.294661]
[1738180659679,0.00098521,103700.0,103690.0,0.54173264]
[1738180659887,0.0976863,103700.0,103690.0,2.04173264]
[1738180660277,0.00044314,103700.0,103690.0,0.54173264]
[1738180660518,0.00044314,103700.0,103690.0,0.6389758]
[1738180660723,0.00044314,103700.0,103690.0,0.56173264]
[1738180660935,0.00044314,103700.0,103690.0,0.54173264]
[1738180661350,0.00044314,103700.0,103690.0,0.6389758]
[1738180661555,0.00044314,103700.0,103690.0,0.54173264]
[1738180661781,0.00144314,103700.0,103690.0,0.54673264]
[1738180662252,0.00044314,103700.0,103690.0,0.54173264]
[1738180663345,0.0976863,103700.0,103690.0,0.144661]
[1738180663962,0.0986863,103700.0,103690.0,0.153661]
[1738180664162,0.0986863,103700.0,103690.0,0.149661]
[1738180664376,0.0986863,103700.0,103690.0,0.005]
[1738180664606,0.4173343,103700.0,103690.0,0.012]
[1738180664827,0.2816863,103700.0,103690.0,0.005]
[1738180665036,0.2476863,103700.0,103690.0,0.144661]
[1738180665215,0.2706863,103700.0,103690.0,0.144661]
[1738180665465,0.2706863,103700.0,103690.0,0.148661]
[1738180665667,0.2706863,103700.0,103690.0,0.004]
[1738180665891,0.2706863,103700.0,103690.0,0.148661]
[1738180666095,0.0976863,103700.0,103690.0,0.148661]
[1738180666306,0.0986863,103700.0,103690.0,0.157661]
[1738180666734,0.00044314,103700.0,103690.0,0.29562532]
[1738180666939,0.00544314,103700.0,103690.0,0.6389758]
[1738180667355,0.00044314,103700.0,103690.0,2.04173264]
[1738180667561,0.00044314,103700.0,103690.0,1.797661]
[1738180667766,0.00044314,103700.0,103690.0,2.04473264]
[1738180667971,0.00044314,103700.0,103690.0,2.04273264]
[1738180668184,0.00044314,103700.0,103690.0,2.1439758]
[1738180668390,0.00044314,103700.0,103690.0,0.6439758]
[1738180668843,0.00044314,103700.0,103690.0,2.1969758]
[1738180669057,0.00029862,103730.0,103700.0,0.465148]
[1738180669281,0.00029862,103730.0,103720.0,0.56169164]
[1738180669498,0.00029862,103730.0,103720.0,0.6389348]
[1738180669708,0.00029862,103730.0,103720.0,2.1389348]
[1738180669915,0.00029862,103730.0,103720.0,2.1589348]
[1738180670119,0.00029862,103730.0,103720.0,2.1389348]
[1738180670326,0.00029862,103730.0,103720.0,2.1819348]
[1738180670747,0.00029862,103730.0,103720.0,2.1389348]
[1738180670952,0.00029862,103730.0,103720.0,2.1429348]
[1738180671207,0.00029862,103730.0,103720.0,2.1419348]
[1738180671640,0.00029862,103730.0,103720.0,0.54169164]
[1738180671850,0.00029862,103730.0,103720.0,0.29462]
[1738180672307,0.00029862,103730.0,103720.0,0.14462]
[1738180672519,0.00029862,103730.0,103720.0,0.15458395]
[1738180672947,0.00029862,103730.0,103720.0,0.14962]
[1738180673193,0.00029862,103730.0,103720.0,0.40269164]
[1738180673406,0.00029862,103730.0,103720.0,0.39769164]
[1738180673619,0.00029862,103730.0,103720.0,0.54769164]
[1738180673833,0.00029862,103730.0,103720.0,0.55069164]
[1738180674250,0.00021042,103730.0,103720.0,0.54769164]
[1738180674457,0.00021042,103730.0,103720.0,0.54169164]
[1738180674657,0.00021042,103730.0,103720.0,0.54569164]
[1738180675271,0.00021042,103730.0,103720.0,0.6429348]
[1738180675890,0.00021042,103730.0,103720.0,0.6519348]
[1738180676097,0.00021042,103730.0,103720.0,0.6389348]
[1738180676531,0.00021042,103730.0,103720.0,2.1529348]
[1738180676739,0.00021042,103730.0,103720.0,2.1439348]
[1738180676954,0.00021042,103730.0,103720.0,2.1389348]
[1738180677166,0.00021042,103730.0,103720.0,2.1479348]
[1738180677301,0.00021042,103730.0,103720.0,2.07526938]
[1738180677521,0.00021042,103730.0,103720.0,0.55569164]
[1738180677715,0.00021042,103730.0,103720.0,0.55069164]
[1738180677924,0.00021042,103730.0,103720.0,0.6479348]
[1738180678132,0.00021042,103730.0,103720.0,0.6519348]
[1738180678553,0.09745358,103730.0,103720.0,0.15762]
[1738180678839,0.09745358,103730.0,103720.0,0.15858407]
[1738180679273,0.09745358,103730.0,103720.0,0.15762]
[1738180679472,0.09745358,103730.0,103720.0,0.009]
[1738180679670,0.09745358,103730.0,103720.0,0.012]
[1738180679828,0.09745358,103730.0,103720.0,0.003]
[1738180680044,0.09745358,103730.0,103720.0,0.14762]
[1738180680243,0.09745358,103730.0,103720.0,0.15662]
[1738180680469,0.09745358,103730.0,103720.0,0.14858411]
[1738180680839,0.00021042,103730.0,103720.0,0.15158411]
[1738180681046,0.09845358,103730.0,103720.0,0.14462]
[1738180681297,0.00121042,103730.0,103720.0,0.14558404]
[1738180681487,0.09845358,103730.0,103720.0,0.14462]
[1738180681693,0.09845358,103730.0,103710.0,0.144624]
[1738180681895,0.09845358,103730.0,103700.0,0.192858]
[1738180681896,0.09792912,103720.0,103700.0,0.144642]
[1738180682098,0.09792912,103720.0,103700.0,0.337503]
[1738180682253,0.09792912,103720.0,103700.0,0.144642]
[1738180682453,0.09792912,103720.0,103700.0,0.337509]
[1738180682660,0.09724316,103710.0,103680.0,0.0001422]
[1738180682859,0.41490416,103690.0,103680.0,0.00028609]
[1738180684062,0.42490416,103690.0,103680.0,0.00028609]
[1738180684267,0.41490416,103690.0,103680.0,0.00028609]
[1738180685002,0.42490416,103690.0,103680.0,0.00028609]
[1738180685251,0.27024316,103690.0,103680.0,0.00028609]
[1738180685449,0.41490416,103690.0,103680.0,0.00028609]
[1738180685862,0.82254022,103690.0,103680.0,0.00028609]
[1738180686061,0.7094758,103690.0,103680.0,0.00028609]
[1738180686617,0.023,103650.0,103590.0,1.5]
[1738180686827,0.09724316,103630.0,103610.0,0.144771]
[1738180687037,0.09792912,103630.0,103610.0,0.337788]
[1738180687255,0.09724316,103630.0,103620.0,0.144759]
[1738180687476,0.0755,103660.0,103650.0,0.144717]
[1738180687749,0.0755,103660.0,103640.0,0.337684]
[1738180687750,0.09724316,103660.0,103640.0,0.337684]
[1738180687928,0.00014362,103660.0,103650.0,0.337673]
[1738180688133,0.09738678,103660.0,103650.0,0.144717]
[1738180688375,0.09738678,103660.0,103640.0,2.030648]
[1738180688590,0.09738678,103660.0,103640.0,1.644724]
[1738180688591,0.09724316,103650.0,103640.0,1.644724]
[1738180689004,0.00014362,103660.0,103650.0,0.144717]
[1738180689132,0.00014362,103660.0,103650.0,0.14568158]
[1738180689337,0.00014362,103660.0,103650.0,0.29568158]
[1738180689537,0.00014362,103660.0,103650.0,1.794717]
[1738180689740,0.00014362,103660.0,103650.0,1.644717]
[1738180690208,0.00914362,103660.0,103650.0,1.645717]
[1738180690345,0.00014362,103660.0,103650.0,1.797717]
[1738180690559,0.00014362,103660.0,103650.0,1.89496016]
[1738180690801,0.00114362,103660.0,103650.0,1.90196016]
[1738180691010,0.00114362,103660.0,103650.0,1.92496016]
[1738180691846,0.00114362,103660.0,103650.0,1.94496016]
[1738180693249,0.00114362,103660.0,103650.0,0.151717]
[1738180693404,0.00014362,103660.0,103650.0,0.148717]
[1738180693602,0.00014362,103660.0,103650.0,0.1496815]
[1738180693807,0.00014362,103660.0,103650.0,0.3086815]
[1738180694126,0.00014362,103660.0,103650.0,0.42496016]
[1738180694337,0.00014362,103660.0,103650.0,0.43496016]
[1738180694480,0.00014362,103660.0,103650.0,1.92396016]
[1738180694709,6.2e-07,103660.0,103650.0,1.94396016]
[1738180695924,6.2e-07,103660.0,103650.0,1.93796016]
[1738180696154,6.2e-07,103660.0,103650.0,1.94396016]
[1738180696393,6.2e-07,103660.0,103650.0,0.4574734]
[1738180696657,6.2e-07,103660.0,103650.0,0.4664734]
[1738180696881,6.2e-07,103660.0,103650.0,1.9464734]
[1738180697110,6.2e-07,103660.0,103650.0,1.9236156]
[1738180697359,6.2e-07,103660.0,103650.0,0.32637244]
[1738180698069,6.2e-07,103660.0,103650.0,0.1568592]
[1738180698266,6.2e-07,103660.0,103650.0,0.15782375]
[1738180698961,6.2e-07,103660.0,103650.0,0.25506682]
[1738180699209,6.2e-07,103660.0,103650.0,0.43710236]
[1738180699407,6.2e-07,103660.0,103650.0,0.1568592]
[1738180699813,6.2e-07,103660.0,103650.0,0.15782374]
[1738180700011,6.2e-07,103660.0,103650.0,0.1568592]
[1738180700213,6.2e-07,103660.0,103650.0,0.30782376]
[1738180700477,6.2e-07,103660.0,103650.0,0.3068592]
[1738180702380,0.09724378,103660.0,103650.0,0.0121422]
[1738180702585,0.27265412,103660.0,103650.0,0.0121422]
[1738180702792,0.27265412,103660.0,103650.0,0.1568592]
[1738180702793,0.09724378,103660.0,103650.0,0.1568592]
[1738180703202,0.09724378,103660.0,103650.0,0.0091422]
[1738180703203,0.24194678,103660.0,103650.0,0.0091422]
[1738180703425,0.51194678,103660.0,103650.0,0.0001422]
[1738180703633,0.387127,103640.0,103610.0,0.337789]
[1738180703835,0.09792912,103630.0,103610.0,0.337789]
[1738180704069,0.09792912,103630.0,103610.0,0.530811]
[1738180704070,0.24792912,103630.0,103610.0,0.530811]
[1738180704302,0.09724316,103630.0,103620.0,0.144759]
[1738180704512,0.0494,103640.0,103620.0,0.144759]
[1738180704513,6.2e-07,103660.0,103640.0,0.192959]
[1738180704724,0.09724316,103650.0,103640.0,0.385923]
[1738180705362,0.15000062,103660.0,103650.0,0.144717]
[1738180705363,6.2e-07,103660.0,103650.0,0.144717]
[1738180705575,6.2e-07,103660.0,103650.0,0.14568166]
[1738180705787,0.00100062,103660.0,103650.0,0.14568166]
[1738180705990,0.00200062,103660.0,103650.0,1.64668166]
[1738180706200,0.09824378,103660.0,103650.0,1.644717]
[1738180706414,0.09724378,103660.0,103650.0,0.144717]
[1738180706620,0.09724378,103660.0,103650.0,0.145717]
[1738180707067,6.2e-07,103660.0,103650.0,0.1466817]
[1738180707273,0.09724378,103660.0,103650.0,0.145717]
[1738180708124,0.09724378,103660.0,103650.0,0.001]
[1738180708334,0.41494678,103660.0,103650.0,0.001]
[1738180708547,0.41494678,103660.0,103650.0,0.0011423]
[1738180708763,0.54134561,103660.0,103650.0,0.0011423]
[1738180708977,0.54134561,103660.0,103650.0,0.0001423]
[1738180709180,0.54134561,103660.0,103650.0,0.0011423]
[1738180709181,0.63870237,103660.0,103650.0,0.0011423]
[1738180709624,0.54134561,103660.0,103650.0,0.0001423]
[1738180709829,0.37364261,103660.0,103650.0,0.1448593]
[1738180710047,0.29434261,103660.0,103650.0,0.1448593]
[1738180710258,0.09863482,103660.0,103650.0,0.1448593]
[1738180710912,0.00039166,103660.0,103650.0,0.2948593]
[1738180711378,0.00029945,103660.0,103650.0,0.29476709]
[1738180711794,0.09754261,103660.0,103650.0,0.14476709]
[1738180712019,0.00029945,103660.0,103650.0,0.14573176]
[1738180712239,0.09754261,103660.0,103650.0,0.14573176]
[1738180712454,0.09754261,103660.0,103650.0,0.14476709]
[1738180712664,0.09854261,103660.0,103650.0,0.14476709]
[1738180713072,0.09754261,103660.0,103650.0,0.14576709]
[1738180713514,0.09754261,103660.0,103650.0,0.00105009]
[1738180713515,0.40199987,103660.0,103650.0,0.00105009]
[1738180713944,0.41524561,103660.0,103650.0,0.00105009]
[1738180714146,0.144747,103630.0,103600.0,0.386084]
[1738180714354,0.09792912,103620.0,103600.0,0.530854]
[1738180714556,0.09724316,103620.0,103610.0,0.144773]
[1738180714792,0.09724316,103620.0,103600.0,0.530854]
[1738180714994,0.09792912,103620.0,103610.0,0.144773]
[1738180715222,0.09724316,103620.0,103610.0,0.144773]
[1738180715428,0.15,103650.0,103610.0,0.144773]
[1738180715635,0.43377837,103660.0,103630.0,0.144745]
[1738180715636,0.09724316,103640.0,103630.0,0.144745]
[1738180716498,0.00029883,103660.0,103650.0,0.144717]
[1738180716712,0.09754199,103660.0,103650.0,0.144717]
[1738180716929,0.09754199,103660.0,103620.0,0.193012]
[1738180717176,0.09724316,103650.0,103640.0,0.144731]
[1738180717839,0.24792912,103650.0,103640.0,0.00047986]
[1738180718048,0.6620318,103650.0,103640.0,0.00047986]
[1738180718484,0.24724316,103650.0,103640.0,0.00047986]
[1738180718719,0.70455616,103650.0,103640.0,0.00047986]
[1738180718981,0.70455616,103650.0,103590.0,0.386115]
[1738180718982,0.144764,103620.0,103590.0,0.386115]
[1738180719241,0.09792912,103610.0,103600.0,0.144787]
[1738180719733,0.09724316,103610.0,103600.0,0.144787]
[1738180719946,0.09724316,103610.0,103590.0,0.53091]
[1738180720159,0.00068596,103600.0,103570.0,0.01983997]
[1738180720370,0.5373838,103590.0,103570.0,0.0002849]
[1738180720579,0.09792912,103580.0,103570.0,0.0002849]
[1738180720780,0.09792912,103580.0,103570.0,0.1451139]
[1738180720983,0.09724316,103580.0,103570.0,0.1451139]
[1738180721800,0.09724316,103580.0,103570.0,0.14607938]
[1738180722010,0.15,103600.0,103590.0,0.144801]
[1738180722209,0.09724316,103600.0,103590.0,0.337859]
[1738180723458,0.001,103600.0,103590.0,0.337859]
[1738180723677,0.002,103600.0,103590.0,0.337859]
[1738180724098,0.09924316,103600.0,103590.0,0.337859]
[1738180724511,0.09824316,103600.0,103590.0,0.337859]
[1738180724918,0.09824316,103600.0,103590.0,0.338859]
[1738180725326,0.09724316,103600.0,103590.0,0.145801]
[1738180725526,0.10706748,103600.0,103590.0,0.145801]
[1738180725787,0.09724316,103600.0,103590.0,0.145801]
[1738180726249,0.09724316,103600.0,103590.0,0.144801]
[1738180726483,0.09724316,103600.0,103590.0,0.145801]
[1738180726692,0.39309063,103640.0,103610.0,0.337792]
[1738180726899,0.09724316,103630.0,103620.0,0.144758]
[1738180727360,0.005,103650.0,103640.0,0.144731]
[1738180727573,0.005,103650.0,103640.0,0.14569587]
[1738180727785,0.005,103650.0,103640.0,0.144731]
[1738180727994,0.00547918,103650.0,103640.0,0.14569572]
[1738180728207,0.00547918,103650.0,103640.0,0.64001052]
[1738180728410,1.8e-07,103650.0,103640.0,0.6390458]
[1738180728623,1.8e-07,103650.0,103640.0,0.7933458]
[1738180728836,1.8e-07,103650.0,103640.0,0.7923458]
[1738180729049,1.8e-07,103650.0,103640.0,0.8023458]
[1738180729267,0.00029883,103660.0,103640.0,0.8023458]
[1738180729268,8.3e-07,103660.0,103650.0,0.327717]
[1738180729484,8.3e-07,103660.0,103650.0,0.54496016]
[1738180729913,8.3e-07,103660.0,103650.0,0.43496016]
[1738180730123,8.3e-07,103660.0,103650.0,0.41496016]
[1738180730583,8.3e-07,103660.0,103650.0,0.41796016]
[1738180730993,8.3e-07,103660.0,103650.0,0.42796016]
[1738180731499,8.3e-07,103660.0,103650.0,0.45696016]
[1738180731970,0.15068596,103720.0,103690.0,0.385752]
[1738180732191,0.09724316,103710.0,103690.0,0.385752]
[1738180732401,0.09724316,103710.0,103700.0,0.192862]
[1738180733766,0.00014381,103720.0,103700.0,0.19382624]
[1738180733977,0.00014381,103720.0,103710.0,0.14559814]
[1738180735077,0.00014381,103720.0,103710.0,0.144634]
[1738180735315,0.00014381,103720.0,103710.0,0.14559796]
[1738180735578,0.09738697,103720.0,103710.0,0.151634]
[1738180735851,0.09738697,103720.0,103680.0,0.337553]
[1738180735852,0.144634,103710.0,103680.0,0.337553]
[1738180736125,0.09724316,103700.0,103690.0,0.144661]
[1738180736342,0.09724316,103700.0,103680.0,0.14467]
[1738180736604,0.09792912,103700.0,103680.0,0.144671]
[1738180736848,0.00068596,103690.0,103670.0,0.144689]
[1738180737119,0.09724316,103680.0,103670.0,0.144689]
[1738180737367,0.43551412,103680.0,103650.0,0.144711]
[1738180737698,0.09724316,103680.0,103670.0,0.144689]
[1738180738818,0.00068596,103700.0,103660.0,0.24707164]
[1738180739056,0.09724316,103690.0,103680.0,0.144675]
[1738180740254,0.09724316,103690.0,103650.0,0.192946]
[1738180740466,0.24261012,103680.0,103660.0,0.144701]
[1738180740682,0.24193816,103670.0,103640.0,0.337692]
[1738180740893,0.09724316,103670.0,103660.0,0.144703]
[1738180741134,0.461968,103720.0,103690.0,0.144654]
[1738180741367,0.144653,103700.0,103670.0,0.337598]
[1738180741613,0.24259112,103690.0,103660.0,0.385854]
[1738180741826,0.24193916,103670.0,103640.0,0.007]
[1738180742063,0.09724316,103670.0,103640.0,0.192974]
[1738180742275,0.09792912,103670.0,103650.0,0.337668]
[1738180742504,0.15648143,103670.0,103630.0,0.192979]
[1738180742733,0.144718,103650.0,103630.0,0.144739]
[1738180742949,0.44019316,103660.0,103630.0,0.337733]
[1738180742950,0.09724316,103640.0,103630.0,0.337733]
[1738180743163,0.09724316,103640.0,103630.0,0.144745]
[1738180743620,0.09724316,103640.0,103620.0,0.530754]